bitfinex/quotes_SOLUSD_20240614
["timestamp","ask_amount","ask_price","bid_price","bid_amount"]
[1718375754941,2.5438,145.45,145.38,2.545]
[1718375755251,102.544,145.44,145.37,0.34]
[1718375755541,17.8123,145.41,145.34,15.4021]
[1718375755770,7.006972,145.49,145.34,15.4021]
[1718375755771,7.6358,145.37,145.34,15.4021]
[1718375756053,7.6358,145.37,145.33,6.1106]
[1718375756054,22.9045,145.39,145.33,6.1106]
[1718375756216,100.0,145.4,145.33,11.2022]
[1718375756426,102.5447,145.4,145.33,8.6564]
[1718375756620,2.5447,145.4,145.33,8.6564]
[1718375756858,122.9025,145.4,145.33,6.1106]
[1718375757038,125.4473,145.4,145.33,6.1106]
[1718375757225,2.5448,145.39,145.33,6.1106]
[1718375757558,107.6354,145.38,145.33,6.1106]
[1718375757722,102.5452,145.38,145.33,6.1106]
[1718375757919,102.5447,145.4,145.33,8.6565]
[1718375758151,25.4459,145.41,145.33,21.3857]
[1718375758322,2.5451,145.38,145.33,6.1106]
[1718375758529,2.5449,145.39,145.33,6.1106]
[1718375758840,10.181,145.37,145.33,6.1106]
[1718375759026,2.5452,145.37,145.33,6.1106]
[1718375759538,107.637,145.35,145.29,21.6719]
[1718375759749,100.0,145.33,145.29,21.6719]
[1718375760092,100.0,145.35,145.29,21.6719]
[1718375760378,100.0,145.39,145.32,15.2763]
[1718375760520,117.8083,145.44,145.35,7.6363]
[1718375760721,100.0,145.44,145.29,21.6719]
[1718375760952,100.0,145.42,145.3,0.17]
[1718375761124,100.0,145.46,145.35,15.5585]
[1718375761339,5.0881,145.44,145.38,6.3533]
[1718375761534,100.0,145.46,145.38,6.3533]
[1718375761738,7.6344,145.4,145.35,15.5585]
[1718375761939,105.0892,145.41,145.35,15.5585]
[1718375762143,100.0,145.41,145.35,15.5585]
[1718375762345,7.6353,145.38,145.35,15.5585]
[1718375762552,2.5451,145.38,145.35,15.5585]
[1718375762727,10.1824,145.35,145.31,15.1055]
[1718375763056,2.5456,145.35,145.31,15.1055]
[1718375763225,2.5459,145.33,145.31,15.1055]
[1718375763424,2.5458,145.34,145.31,15.1055]
[1718375763635,100.0,145.33,145.27,15.174]
[1718375763876,2.5464,145.3,145.27,15.174]
[1718375764049,100.0,145.33,145.27,15.174]
[1718375764237,100.0,145.35,145.27,15.174]
[1718375764552,7.6364,145.36,145.29,2.5466]
[1718375764739,7.6364,145.36,145.28,25.4674]
[1718375764937,2.5456,145.35,145.28,7.6401]
[1718375765244,100.0,145.37,145.27,15.174]
[1718375765445,125.09,145.41,145.27,15.174]
[1718375765446,100.0,145.35,145.27,15.174]
[1718375765754,5.0916,145.34,145.27,15.174]
[1718375766052,25.4615,145.32,145.27,15.174]
[1718375766443,7.638,145.33,145.27,15.174]
[1718375766634,17.8207,145.34,145.27,15.174]
[1718375766831,105.0913,145.35,145.27,20.2677]
[1718375767038,125.4527,145.37,145.29,2.5465]
[1718375767241,107.6359,145.37,145.29,25.4656]
[1718375767431,22.9152,145.32,145.27,15.174]
[1718375767630,22.917,145.31,145.27,15.174]
[1718375767951,2.5463,145.31,145.27,15.174]
[1718375768160,5.0936,145.28,145.26,6.9116496]
[1718375768455,17.8279,145.28,145.26,0.8275496]
[1718375768661,5.0937,145.28,145.26,0.8275496]
[1718375768881,5.0935,145.29,145.26,0.8275496]
[1718375769042,100.0,145.29,145.26,0.8275496]
[1718375769243,7.6404,145.28,145.26,0.8275496]
[1718375769439,22.9215,145.28,145.26,0.8275496]
[1718375769637,7.6405,145.28,145.26,0.8275496]
[1718375769839,100.0,145.34,145.26,0.8275496]
[1718375769840,107.6408,145.27,145.26,0.8275496]
[1718375770052,7.6408,145.27,145.26,0.8275496]
[1718375770380,125.4696,145.27,145.26,0.8275496]
[1718375773858,170.4696,145.27,145.26,0.8275496]
[1718375774231,270.4696,145.27,145.26,0.8275496]
[1718375774664,10.195,145.17,145.14,6.1396]
[1718375774835,100.0,145.21,145.14,6.1396]
[1718375775037,25.481,145.21,145.14,6.1396]
[1718375775244,100.0,145.23,145.15,17.8432]
[1718375775489,117.8314,145.25,145.17,15.6889]
[1718375775656,2.5477,145.23,145.17,15.6889]
[1718375775855,7.6428,145.24,145.17,15.6889]
[1718375776054,7.643,145.23,145.17,15.6889]
[1718375776356,100.0,145.23,145.17,15.6889]
[1718375776558,7.644,145.21,145.17,15.6889]
[1718375776764,22.9311,145.22,145.17,15.6889]
[1718375776959,7.6446,145.2,145.17,15.6889]
[1718375777176,125.4807,145.21,145.17,15.6889]
[1718375777478,102.548,145.21,145.17,15.6889]
[1718375777689,2.5484,145.19,145.14,6.1396]
[1718375777851,2.5485,145.18,145.14,6.1396]
[1718375778049,2.5488,145.17,145.14,6.1396]
[1718375778286,2.5487,145.17,145.14,6.1396]
[1718375778583,2.5487,145.17,145.13,15.9982]
[1718375778783,100.0,145.21,145.13,15.9982]
[1718375778972,5.0965,145.2,145.13,15.9982]
[1718375779177,100.0,145.21,145.13,15.9982]
[1718375779389,107.6451,145.19,145.13,15.9982]
[1718375779680,125.4839,145.19,145.13,15.9982]
[1718375779862,102.5484,145.19,145.13,15.9982]
[1718375780056,100.0,145.19,145.13,15.9982]
[1718375780259,125.488,145.17,145.11,0.8275496]
[1718375780472,100.0,145.17,145.11,0.8275496]
[1718375780774,25.4831,145.2,145.12,7.6485]
[1718375780978,7.6447,145.2,145.12,20.396]
[1718375781169,102.5484,145.19,145.12,2.5495]
[1718375781376,102.5485,145.19,145.11,23.7750496]
[1718375781561,107.6452,145.19,145.11,26.3246496]
[1718375781760,115.2903,145.19,145.11,8.4763496]
[1718375782058,115.2903,145.19,145.12,2.5496]
[1718375782059,107.6452,145.19,145.12,2.5496]
[1718375782275,100.0,145.23,145.12,0.17]
[1718375782480,100.0,145.23,145.16,2.5488]
[1718375782692,100.0,145.25,145.18,2.5485]
[1718375782911,100.0,145.25,145.17,15.0597]
[1718375782912,5.0935,145.29,145.2,10.1924]
[1718375783213,200.0,145.32,145.2,0.17]
[1718375783370,117.8207,145.34,145.26,2.5471]
[1718375783570,100.0,145.36,145.26,0.17]
[1718375783875,100.0,145.34,145.27,10.1877]
[1718375784079,115.2725,145.36,145.28,7.81]
[1718375784385,7.6385,145.32,145.29,6.1917]
[1718375784575,100.0,145.4,145.25,15.0597]
[1718375784576,100.0,145.3,145.25,15.0597]
[1718375784898,112.7281,145.35,145.27,2.5468]
[1718375785099,10.1821,145.36,145.26,17.8296]
[1718375785100,100.0,145.37,145.3,2.5463]
[1718375785279,100.0,145.37,145.3,5.0927]
[1718375785478,107.6357,145.37,145.29,7.8095]
[1718375785678,5.0896,145.4,145.32,2.5459]
[1718375785893,2.5446,145.41,145.33,5.0917]
[1718375786073,102.5445,145.41,145.34,6.1917]
[1718375786269,100.0,145.45,145.36,7.6362]
[1718375786494,253.8,145.46,145.39,2.5448]
[1718375786683,253.8,145.46,145.37,0.17]
[1718375786684,2.544,145.44,145.37,3.0551]
[1718375786995,22.8949,145.45,145.37,12.7257]
[1718375786996,2.5438,145.45,145.37,12.7257]
[1718375787196,253.8,145.46,145.4,5.0893]
[1718375787501,7.632,145.44,145.36,7.636]
[1718375787707,2.5442,145.43,145.35,15.6131]
[1718375787883,2.5442,145.43,145.36,2.5453]
[1718375788081,2.5442,145.43,145.35,23.25]
[1718375788082,5.0883,145.43,145.35,0.34]
[1718375788279,100.0,145.42,145.34,22.3785]
[1718375788490,100.0,145.39,145.26,22.1701]
[1718375788680,102.5446,145.41,145.26,22.1701]
[1718375788897,105.0884,145.43,145.35,7.6364]
[1718375789204,102.5441,145.43,145.36,2.5453]
[1718375789510,256.3436,145.46,145.39,2.5448]
[1718375789679,253.8,145.46,145.32,0.17]
[1718375790007,2.5433,145.48,145.41,2.5444]
[1718375790208,2.5439,145.45,145.38,2.5449]
[1718375790384,22.8902,145.48,145.4,7.6339]
[1718375790600,2.5435,145.47,145.41,0.34]
[1718375790927,100.0,145.49,145.41,5.0888]
[1718375791078,2.5433,145.48,145.4,23.2416]
[1718375791279,5.0868,145.48,145.4,5.0892]
[1718375791580,2.5433,145.48,145.41,2.7144]
[1718375791781,7.6299,145.48,145.41,0.17]
[1718375791994,15.2598,145.48,145.41,0.17]
[1718375792190,10.2598,145.48,145.41,0.17]
[1718375792393,2.6299,145.48,145.41,2.7145]
[1718375792596,2.5435,145.47,145.4,2.5446]
[1718375792778,100.0,145.47,145.4,2.5446]
[1718375792985,100.0,145.47,145.41,2.5444]
[1718375793383,100.0,145.47,145.4,17.8121]
[1718375793579,100.0,145.49,145.42,22.8988]
[1718375793774,100.0,145.49,145.42,17.8101]
[1718375793976,100.0,145.49,145.41,0.17]
[1718375794176,100.0,145.49,145.43,2.544]
[1718375794690,100.0,145.49,145.42,11.1891]
[1718375794895,100.0,145.49,145.43,2.5441]
[1718375795292,102.5431,145.49,145.42,13.7332]
[1718375795502,102.5427,145.52,145.44,17.8071]
[1718375795692,122.8826,145.53,145.45,7.6312]
[1718375796003,122.8826,145.53,145.42,6.1006]
[1718375796004,100.0,145.51,145.42,6.1006]
[1718375796179,102.5427,145.51,145.44,7.6316]
[1718375796376,102.5427,145.51,145.44,2.5439]
[1718375796576,100.0,145.51,145.43,22.8963]
[1718375796777,100.0,145.55,145.45,5.0875]
[1718375797097,2.5426,145.52,145.45,25.4372]
[1718375797410,100.0,145.51,145.42,6.1006]
[1718375797596,100.0,145.53,145.43,0.34]
[1718375797811,100.0,145.53,145.43,0.51]
[1718375798115,102.5424,145.53,145.46,2.5435]
[1718375798296,105.0843,145.55,145.47,5.0867]
[1718375798482,102.5421,145.55,145.48,7.6296]
[1718375798676,102.5421,145.55,145.46,0.34]
[1718375798677,15.2536,145.54,145.46,23.2324]
[1718375798886,2.5423,145.54,145.47,7.6303]
[1718375799090,2.5423,145.54,145.47,2.5434]
[1718375799285,2.5423,145.54,145.47,7.6303]
[1718375799481,7.6268,145.54,145.47,2.5434]
[1718375799677,2.5423,145.54,145.47,2.5434]
[1718375800119,7.6268,145.54,145.47,2.5434]
[1718375800821,115.4126,145.59,145.45,7.8013]
[1718375800822,2.5426,145.52,145.45,7.8013]
[1718375800980,107.6275,145.53,145.46,2.5436]
[1718375801187,102.5425,145.53,145.46,7.6308]
[1718375801514,105.085,145.53,145.45,12.7189]
[1718375801806,2.5423,145.54,145.46,22.8918]
[1718375802107,100.0,145.53,145.43,2.544]
[1718375802316,100.0,145.5,145.34,5.51457221]
[1718375802484,107.629,145.5,145.34,25.09]
[1718375802683,2.5431,145.49,145.42,11.1891]
[1718375802913,2.5428,145.51,145.43,22.8964]
[1718375803104,2.5428,145.51,145.42,6.1006]
[1718375803105,2.5431,145.49,145.42,23.9105]
[1718375803316,100.0,145.5,145.42,6.1006]
[1718375803485,2.5432,145.49,145.42,13.7334]
[1718375803811,2.5433,145.48,145.42,6.1006]
[1718375804110,2.5432,145.49,145.42,8.6448]
[1718375804320,2.5432,145.49,145.42,13.7335]
[1718375804517,5.0862,145.49,145.42,6.1006]
[1718375804693,2.5433,145.48,145.42,6.1006]
[1718375805014,122.8931,145.46,145.42,6.1006]
[1718375805231,125.09,145.53,145.38,6.3538]
[1718375805232,100.0,145.44,145.38,6.3538]
[1718375805521,5.089,145.41,145.35,16.2661]
[1718375805720,115.2643,145.44,145.36,5.0906]
[1718375806017,102.5441,145.44,145.37,2.5451]
[1718375806223,100.0,145.46,145.38,2.545]
[1718375806391,122.8936,145.46,145.38,5.09]
[1718375806590,122.8963,145.44,145.36,5.0907]
[1718375806821,105.0881,145.44,145.36,22.9083]
[1718375807017,2.5438,145.45,145.38,7.6348]
[1718375807311,100.0,145.46,145.35,16.4361]
[1718375807513,100.0,145.46,145.4,5.0893]
[1718375807695,100.0,145.46,145.4,12.7234]
[1718375807896,100.0,145.46,145.4,7.6339]
[1718375808106,100.0,145.46,145.36,0.68]
[1718375808314,100.0,145.44,145.38,2.5449]
[1718375808518,100.0,145.44,145.37,5.0903]
[1718375808722,117.8056,145.46,145.36,0.51]
[1718375808899,100.0,145.43,145.35,16.2661]
[1718375809100,2.5437,145.46,145.39,2.5447]
[1718375809409,2.5437,145.46,145.36,0.17]
[1718375809410,2.5442,145.43,145.36,25.4533]
[1718375809604,100.0,145.44,145.38,2.545]
[1718375809929,100.0,145.44,145.37,22.9064]
[1718375810217,102.544,145.44,145.37,25.4514]
[1718375810392,100.0,145.44,145.38,2.545]
[1718375810589,2.5441,145.44,145.37,2.545]
[1718375810825,100.0,145.42,145.35,16.2661]
[1718375811132,22.9026,145.4,145.34,6.3538]
[1718375811417,100.0,145.45,145.31,15.867]
[1718375811418,112.7254,145.38,145.31,15.867]
[1718375811601,107.6353,145.38,145.31,18.4132]
[1718375811996,102.545,145.38,145.31,23.5056]
[1718375812222,100.0,145.38,145.32,2.546]
[1718375812422,2.5448,145.4,145.33,2.5459]
[1718375812644,100.0,145.43,145.31,15.867]
[1718375812854,7.6331,145.42,145.35,2.5454]
[1718375813017,109.63891469,145.46,145.39,2.5447]
[1718375813219,100.0,145.44,145.35,17.8183]
[1718375813428,100.0,145.44,145.37,2.545]
[1718375813429,102.544,145.44,145.37,2.545]
[1718375813738,112.7225,145.42,145.33,7.6376]
[1718375813967,16.5775,145.47,145.36,15.272]
[1718375813968,125.4404,145.44,145.36,15.272]
[1718375814232,122.8933,145.46,145.38,15.2699]
[1718375814448,102.5443,145.43,145.36,2.5453]
[1718375814740,125.442,145.43,145.36,2.5453]
[1718375815038,122.8947,145.45,145.37,5.0903]
[1718375815230,2.544,145.44,145.37,25.4515]
[1718375815446,107.6314,145.45,145.38,2.5449]
[1718375815620,115.2629,145.45,145.38,2.5449]
[1718375815816,102.5442,145.43,145.36,2.5452]
[1718375816137,115.2652,145.43,145.36,2.5453]
[1718375816344,107.6325,145.43,145.36,7.636]
[1718375816710,107.6325,145.43,145.35,22.9095]
[1718375816915,5.0895,145.4,145.32,5.0921]
[1718375817135,7.6341,145.4,145.33,2.5458]
[1718375817438,100.0,145.43,145.31,15.867]
[1718375817630,100.0,145.45,145.31,15.867]
[1718375817936,100.0,145.45,145.39,2.5448]
[1718375818140,102.5438,145.45,145.38,25.4492]
[1718375818322,100.0,145.45,145.38,15.2699]
[1718375818523,100.0,145.45,145.32,0.17]
[1718375818716,107.6315,145.45,145.38,2.545]
[1718375819040,115.263,145.45,145.37,22.9062]
[1718375819237,122.8944,145.45,145.37,25.4512]
[1718375819451,107.6327,145.43,145.36,2.8852]
[1718375819617,100.0,145.43,145.37,15.271]
[1718375819814,100.0,145.43,145.37,2.5451]
[1718375820012,105.0883,145.43,145.35,22.9093]
[1718375820244,122.8947,145.45,145.37,7.6354]
[1718375820555,5.0894,145.4,145.33,2.5458]
[1718375820731,17.8122,145.41,145.33,2.5458]
[1718375820934,102.5451,145.38,145.31,18.4131]
[1718375821133,102.5451,145.38,145.31,23.5055]
[1718375821333,115.2704,145.38,145.31,18.4131]
[1718375821554,115.2704,145.38,145.31,15.867]
[1718375821850,2.5452,145.37,145.31,15.867]
[1718375822054,2.5452,145.37,145.3,6.0431]
[1718375822055,102.5454,145.36,145.3,6.0431]
[1718375822257,2.5456,145.35,145.3,6.0431]
[1718375822455,107.6363,145.36,145.3,6.0431]
[1718375822658,102.5454,145.36,145.3,6.0431]
[1718375822858,100.0,145.36,145.3,6.0431]
[1718375823035,2.5459,145.33,145.26,5.0941]
[1718375823231,22.9123,145.34,145.27,5.0937]
[1718375823232,100.0,145.34,145.27,5.0937]
[1718375823429,100.0,145.37,145.25,6.4349]
[1718375823430,100.0,145.32,145.25,6.4349]
[1718375823650,2.5463,145.31,145.25,6.4349]
[1718375823844,122.9154,145.32,145.25,6.4349]
[1718375824039,100.0,145.36,145.32,2.546]
[1718375824363,100.0,145.34,145.25,6.4349]
[1718375824656,100.0,145.34,145.27,5.0938]
[1718375824657,102.5457,145.34,145.27,5.0938]
[1718375824854,100.0,145.31,145.25,6.4349]
[1718375825056,100.0,145.33,145.24,15.9593]
[1718375825260,100.0,145.38,145.28,2.5467]
[1718375825261,100.0,145.35,145.28,2.5467]
[1718375825436,100.0,145.35,145.28,12.7338]
[1718375825756,102.5456,145.35,145.28,2.5467]
[1718375826459,100.0,145.33,145.27,2.5468]
[1718375826659,2.5461,145.32,145.25,2.5472]
[1718375826857,100.0,145.35,145.28,2.5466]
[1718375827038,122.9102,145.35,145.27,7.6407]
[1718375827239,100.0,145.35,145.29,2.5465]
[1718375827538,100.0,145.37,145.3,12.732]
[1718375827760,102.5452,145.37,145.3,7.6391]
[1718375828066,102.5452,145.37,145.24,15.9593]
[1718375828067,105.0919,145.33,145.24,15.9593]
[1718375828353,100.0,145.35,145.28,15.2804]
[1718375828571,105.0912,145.35,145.27,5.0938]
[1718375828750,105.0912,145.35,145.29,7.6396]
[1718375828751,100.0,145.35,145.29,7.6396]
[1718375828940,100.0,145.35,145.29,2.5465]
[1718375829336,100.0,145.35,145.28,22.92]
[1718375829536,122.9137,145.33,145.25,7.6417]
[1718375829758,122.9106,145.35,145.27,7.6407]
[1718375829958,100.0,145.35,145.28,2.5467]
[1718375830141,100.0,145.35,145.29,2.5465]
[1718375830357,100.0,145.35,145.29,15.2794]
[1718375830651,100.0,145.35,145.29,2.5465]
[1718375830833,100.0,145.35,145.29,7.6397]
[1718375831039,100.0,145.38,145.29,0.17]
[1718375831260,100.0,145.38,145.32,2.546]
[1718375831449,102.545,145.38,145.31,2.5461]
[1718375831650,102.545,145.38,145.31,7.6386]
[1718375831859,100.0,145.38,145.31,15.2773]
[1718375832138,125.4507,145.38,145.3,21.6314]
[1718375832444,115.2705,145.38,145.3,31.8173]
[1718375832638,100.0,145.38,145.32,2.546]
[1718375833244,5.8322,145.44,145.31,16.4089]
[1718375833245,105.8322,145.44,145.31,16.4089]
[1718375833569,5.0885,145.43,145.33,0.17]
[1718375833859,2.5442,145.43,145.36,15.2721]
[1718375834059,100.0,145.44,145.38,2.545]
[1718375834255,100.0,145.44,145.38,2.5449]
[1718375834566,100.0,145.47,145.41,2.5444]
[1718375834769,102.5442,145.43,145.36,7.6359]
[1718375834941,102.5442,145.43,145.33,0.17]
[1718375834942,100.0,145.43,145.33,0.17]
[1718375835145,105.0892,145.41,145.33,22.9125]
[1718375835451,102.5446,145.41,145.34,15.2742]
[1718375835654,100.0,145.43,145.32,0.34]
[1718375835850,112.7211,145.43,145.35,12.7275]
[1718375836044,100.0,145.41,145.35,2.5454]
[1718375836249,100.0,145.39,145.3,6.3532]
[1718375836444,2.545,145.38,145.31,41.701]
[1718375836667,115.2714,145.37,145.3,8.8995]
[1718375836870,2.5454,145.36,145.3,6.3532]
[1718375837055,7.6373,145.34,145.27,19.1815]
[1718375837568,107.6385,145.32,145.25,2.5472]
[1718375837773,107.6385,145.32,145.23,16.6347]
[1718375837774,5.0916,145.34,145.23,16.6347]
[1718375837945,100.0,145.32,145.26,5.0941]
[1718375838149,100.0,145.3,145.23,5.0951]
[1718375838452,100.0,145.3,145.24,2.5474]
[1718375838651,100.0,145.3,145.23,22.9285]
[1718375838652,102.5464,145.3,145.23,7.6426]
[1718375838862,100.0,145.32,145.21,6.468]
[1718375839062,100.0,145.32,145.27,2.5468]
[1718375839272,100.0,145.36,145.31,2.5462]
[1718375839453,102.545,145.38,145.31,7.6386]
[1718375839658,100.0,145.36,145.31,2.5461]
[1718375839858,2.5455,145.35,145.28,2.5466]
[1718375840051,102.5455,145.36,145.29,7.6398]
[1718375840247,107.6372,145.34,145.27,16.6347]
[1718375840452,100.0,145.32,145.25,5.0945]
[1718375840652,115.7799,145.4,145.23,16.6347]
[1718375840861,100.0,145.37,145.24,20.0]
[1718375841171,100.0,145.37,145.31,2.5461]
[1718375841466,102.5452,145.37,145.3,25.4634]
[1718375841667,100.0,145.37,145.3,7.639]
[1718375841871,100.0,145.37,145.24,20.0]
[1718375841872,100.0,145.4,145.32,0.17]
[1718375842058,100.0,145.4,145.33,22.9127]
[1718375842258,100.0,145.4,145.34,7.637]
[1718375842477,100.0,145.4,145.34,22.9115]
[1718375842663,100.0,145.4,145.33,22.9127]
[1718375842970,100.0,145.4,145.31,21.6146]
[1718375842971,122.9028,145.4,145.32,12.7302]
[1718375843171,122.9028,145.4,145.34,2.5457]
[1718375843172,100.0,145.4,145.34,2.5457]
[1718375843475,100.0,145.4,145.33,22.9124]
[1718375843775,100.0,145.39,145.28,0.17]
[1718375844074,100.0,145.39,145.31,25.4619]
[1718375844075,122.9041,145.39,145.31,25.4619]
[1718375844379,102.5449,145.39,145.32,2.546]
[1718375844551,100.0,145.39,145.33,5.0918]
[1718375844752,105.0898,145.39,145.31,5.0922]
[1718375844963,102.5449,145.39,145.32,7.6379]
[1718375845151,100.0,145.39,145.33,7.6376]
[1718375845356,100.0,145.39,145.34,7.637]
[1718375845551,100.0,145.39,145.32,22.914]
[1718375845763,100.0,145.37,145.3,12.7317]
[1718375845961,100.0,145.39,145.27,15.1653]
[1718375846276,2.5451,145.38,145.31,2.5462]
[1718375846453,125.4495,145.39,145.31,22.9163]
[1718375846773,100.0,145.35,145.29,7.6397]
[1718375846976,100.0,145.35,145.29,2.5465]
[1718375847167,5.0915,145.34,145.27,15.1653]
[1718375847473,5.0915,145.34,145.26,21.4951]
[1718375847474,100.0,145.35,145.26,6.2128]
[1718375847782,100.0,145.38,145.24,15.2846]
[1718375847783,125.4618,145.32,145.24,15.2846]
[1718375848075,100.0,145.32,145.26,2.5471]
[1718375848266,102.5461,145.32,145.25,25.4726]
[1718375848474,2.5463,145.31,145.24,7.6421]
[1718375848873,100.0,145.32,145.26,2.5471]
[1718375849253,100.0,145.32,145.25,22.9257]
[1718375849552,100.0,145.32,145.22,6.3602]
[1718375849553,102.5466,145.29,145.22,2.5477]
[1718375849756,100.0,145.29,145.18,22.7012]
[1718375849957,15.6465,145.32,145.18,22.7012]
[1718375850168,100.0,145.34,145.27,2.5468]
[1718375850454,100.0,145.33,145.18,22.7012]
[1718375850663,100.0,145.3,145.24,2.5474]
[1718375850867,102.5465,145.3,145.23,7.6427]
[1718375851193,102.5468,145.28,145.21,2.5479]
[1718375851504,102.5473,145.25,145.18,30.3465]
[1718375851786,100.0,145.25,145.19,7.645]
[1718375851962,22.9235,145.27,145.2,7.6442]
[1718375851963,100.0,145.27,145.2,7.6442]
[1718375852169,100.0,145.27,145.21,7.6437]
[1718375852356,102.547,145.27,145.2,2.548]
[1718375852559,100.0,145.27,145.2,15.2887]
[1718375852913,100.0,145.27,145.22,2.5478]
[1718375853185,107.6388,145.31,145.23,22.9279]
[1718375853485,100.0,145.29,145.23,7.6428]
[1718375853691,100.0,145.29,145.23,2.5475]
[1718375853857,100.0,145.31,145.26,2.5471]
[1718375854057,5.8322,145.37,145.19,20.17]
[1718375854058,100.0,145.35,145.19,20.17]
[1718375854262,115.2735,145.35,145.27,22.9218]
[1718375854560,105.0918,145.33,145.21,0.17]
[1718375854771,2.5461,145.32,145.25,2.5472]
[1718375854966,100.0,145.33,145.21,0.17]
[1718375855164,100.0,145.33,145.26,12.7355]
[1718375855363,100.0,145.33,145.26,7.6412]
[1718375855580,102.5459,145.33,145.26,7.6412]
[1718375855856,100.0,145.33,145.27,7.6407]
[1718375856057,100.0,145.33,145.27,2.5469]
[1718375856462,102.5459,145.33,145.26,7.641]
[1718375856780,102.5459,145.33,145.26,2.5471]
[1718375856984,107.6378,145.33,145.25,22.9254]
[1718375857190,102.5459,145.33,145.26,7.6413]
[1718375857484,100.0,145.29,145.22,5.0957]
[1718375857663,107.639,145.31,145.24,2.5474]
[1718375858091,102.5463,145.31,145.24,7.6423]
[1718375858289,100.0,145.29,145.21,10.1917]
[1718375858602,102.5466,145.29,145.22,7.6435]
[1718375859172,100.0,145.29,145.22,22.9305]
[1718375859505,2.5468,145.28,145.21,7.6438]
[1718375859696,107.6399,145.29,145.22,2.5478]
[1718375859880,100.0,145.29,145.22,15.2866]
[1718375860077,100.0,145.29,145.22,22.9304]
[1718375860298,102.5464,145.31,145.23,22.9287]
[1718375860492,115.2778,145.31,145.24,2.5475]
[1718375860696,107.639,145.31,145.24,2.5475]
[1718375860875,100.0,145.31,145.24,22.9271]
[1718375861093,2.5461,145.32,145.25,2.5472]
[1718375861394,2.5461,145.32,145.25,7.6416]
[1718375861595,115.5411,145.36,145.16,20.66]
[1718375861596,100.0,145.31,145.16,20.66]
[1718375861786,105.0927,145.31,145.23,5.0953]
[1718375861994,107.6379,145.33,145.26,2.5471]
[1718375862180,100.0,145.33,145.27,2.5468]
[1718375862402,100.0,145.33,145.27,15.2815]
[1718375862684,122.9139,145.33,145.25,22.9256]
[1718375862990,122.9139,145.33,145.25,15.2836]
[1718375863291,125.4599,145.33,145.25,15.2836]
[1718375863490,2.5461,145.32,145.25,25.4728]
[1718375863899,125.4596,145.33,145.26,2.5471]
[1718375864074,122.9136,145.33,145.25,22.9256]
[1718375864275,100.0,145.33,145.26,22.9241]
[1718375864495,125.4594,145.33,145.26,2.5471]
[1718375864693,102.546,145.33,145.26,7.6413]
[1718375864888,2.5461,145.32,145.25,7.6415]
[1718375865089,2.5461,145.32,145.25,15.2834]
[1718375865290,100.0,145.33,145.26,22.924]
[1718375865493,100.0,145.33,145.27,2.5469]
[1718375865721,100.0,145.33,145.28,2.5467]
[1718375866002,100.0,145.33,145.27,2.5469]